{"text_format":"3","workbook":"xlsx","n_sheets":3,"sheets":["Executive Summary","Scoresheet","Score Criteria "],"not_rendered":{"images":2,"defined_names":2},"read":"whole","date_system":"1900"}

{"sheet":"Executive Summary","index":0,"n_rows":37,"n_cols":6,"rows_kept":37,"merged":[[5,2,5,6],[7,2,7,4],[9,2,9,3],[11,2,11,5],[13,2,13,5],[15,2,15,7],[17,2,17,7],[20,0,23,7],[27,0,27,8],[29,5,29,6],[30,2,30,3],[32,2,32,3],[32,5,32,6],[36,2,36,3],[36,5,36,6]]}
[{"$nulls":3},"MATIMBA POWER STATION "]
[{"$nulls":3},"TECHNICAL EVALUATION"]
[]
["TECHNICAL EVALUATION AND RECOMMENDATION REPORT OF TENDERS / QUOTES RECEIVED"]
[]
["Enquiry/project/Order Title:",null,"SSC Drive Gearbox Replacement"]
[]
["Enquiry No:"]
[]
["Date:"]
[]
["Department:"]
[]
["Compiled by:"]
[]
["Executive Summary: "]
[]
["Recommended Tender:"]
[]
["Reason:"]
{"$rows_empty":7}
["Approval "]
[]
["Compiled by:",null,"Supported by:",null,null,"Authorised by:  "]
[]
[]
["……………………….",null,"……………………….",null,null,"………………………."]
[]
["Date:",null,"Date:",null,null,"Date:"]
[]
["……………………….",null,"……………………….",null,null,"………………………."]

{"sheet":"Scoresheet","index":1,"n_rows":20,"n_cols":18,"rows_kept":20,"merged":[[3,1,3,2],[9,3,9,5],[9,6,9,8],[9,9,9,11],[9,12,9,14],[9,15,9,17],[10,3,11,3],[10,4,11,4],[10,5,11,5],[10,6,11,6],[10,7,11,7],[10,8,11,8],[10,9,11,9],[10,10,11,10],[10,11,11,11],[10,12,11,12],[10,13,11,13],[10,14,11,14],[10,15,11,15],[10,16,11,16],[10,17,11,17],[11,1,11,2],[13,1,13,2],[14,1,14,2],[15,1,15,2],[16,1,16,2],[17,1,17,2]]}
[null,null,"SSC Drive Gearbox Replacement","MATIMBA POWER STATION TECHNICAL EVALUATION"]
[]
[]
[null,"Techncial Aspects:",null,null,"Final Technical Evaluation Score:"]
[null,"Score criteria"]
[null,5,"Comprehensive / Very Good",null,"Note: If the final score of the Tender is below 75% the Tender"]
[null,4,"Good",null,"will be considered technically unacceptable"]
[null,2,"Poor"]
[]
[{"$nulls":3},"Tender 1",null,null,"Tender 2",null,null,"Tender 3",null,null,"Tender 4",null,null,"Tender 5"]
[{"$nulls":3},"Points","Weight","Score","Points","Weight ","Score","Points","Weight ","Score","Points","Weight ","Score","Points","Weight ","Score"]
[null,"Technical Aspects:"]
[null,null,"TECHNICAL"]
[1,"Design experience of chain conveying system with Hydraulic drive and take up systems.",null,null,35,{"$f":"D14/5*E14","v":0},0,{"$f":"E14","v":35},{"$f":"(G14/5)*H14","v":0},0,{"$f":"H14","v":35},{"$f":"(J14/5)*K14","v":0},0,{"$f":"K14","v":35},{"$f":"(M14/5)*N14","v":0},0,{"$f":"N14","v":35},{"$f":"(P14/5)*Q14","v":0}]
[2,"Method statement clearly demonstrate compliance with the full scope of works.",null,null,30,{"$f":"D16/5*E16","v":0},null,{"$f":"E16","v":15},null,null,{"$f":"H15","v":15},null,null,{"$f":"K15","v":15},null,null,{"$f":"N15","v":15}]
[3,"Provide a list of key resources , including CV's and qualifications.",null,null,15,{"$f":"D15/5*E15","v":0},0,{"$f":"E15","v":30},{"$f":"(G16/5)*H16","v":0},0,30,{"$f":"(J16/5)*K16","v":0},0,30,{"$f":"(M16/5)*N16","v":0},0,30,{"$f":"(P16/5)*Q16","v":0}]
[4,"Project Schedule for the works.",null,null,15,{"$f":"D18/5*E18","v":0},0,{"$f":"E18","v":5},{"$f":"(G17/5)*H17","v":0},0,5,{"$f":"(J17/5)*K17","v":0},0,5,{"$f":"(M17/5)*N17","v":0},0,5,{"$f":"(P17/5)*Q17","v":0}]
[5,"QCP's for Similar work conducted.",null,null,5,{"$f":"D17/5*E17","v":0},0,{"$f":"E17","v":15},{"$f":"(G18/5)*H18","v":0},0,15,{"$f":"(J18/5)*K18","v":0},0,15,{"$f":"(M18/5)*N18","v":0},0,15,{"$f":"(P18/5)*Q18","v":0}]
[null,null,"Score for Technical Aspects:",null,null,{"$f":"SUM(F14:F18)/100","v":{"v":0,"d":"0%"}},null,null,{"$f":"SUM(I14:I18)/100","v":{"v":0,"d":"0%"}},null,null,{"$f":"SUM(L14:L18)/100","v":{"v":0,"d":"0%"}},null,null,{"$f":"SUM(O14:O18)/100","v":{"v":0,"d":"0%"}},null,null,{"$f":"SUM(R14:R18)/100","v":{"v":0,"d":"0%"}}]
[{"$nulls":3},"TOTAL ",{"$f":"SUM(E14:E18)","v":100},null,null,{"$f":"SUM(H14:H18)","v":100},null,null,{"$f":"SUM(K14:K18)","v":100},null,null,{"$f":"SUM(N14:N18)","v":100},null,null,{"$f":"SUM(Q14:Q18)","v":100}]

{"sheet":"Score Criteria ","index":2,"n_rows":16,"n_cols":5,"rows_kept":16,"merged":[[1,0,4,0],[1,1,4,1],[1,4,4,4],[5,0,7,0],[5,1,7,1],[5,4,7,4],[8,0,10,0],[8,1,10,1],[8,4,10,4],[11,0,13,0],[11,1,13,1],[11,4,13,4],[14,0,15,0],[14,1,15,1],[14,4,15,4]]}
[null,"Technical Aspect ","Criteria ","Score ","Weight"]
[1,"Design experience of chain conveying system with the hydraulic drive and take up systems.\n\nReference that the Tenderer has successfully supplied and commissioned similar equipment.\nCertificate of completion including scope of completed project, details of client and implementation dates.\nThe scope of previously completed projects must be relevant to the scope required. ie. Design and construction of chain conveying system with drive and take up system.\n","5 or more completed chain conveying system with hydraulic drive and take up systems design projects.\n",5,35]
[null,null,"3 to 4 completed chain conveying system with hydraulic drive and take up systems design projects.\n",4]
[null,null,"1 to 2 completed chain conveying system with hydraulic drive and take up systems design projects.\n",2]
[null,null,"Not submitted. Design experience not relevant or satisfactory. No design experience.\n",0]
[2,"Method statement clearly demonstrate compliance with the full scope of works as detailed in the works information.  Method statement must include but not limited: Concept/Basic Design Drawings, Summary of required electrical load, Identified interfaces, Cable sizing and calculations.\n\nTenderer demonstrates and provide analysis of current system and replacement recommendations. Concept design, schematics, flow diagrams, lists, electrical and C&I interface requirements.","Detailed method statement on how all of the  activities on the works information will be executed, including activity duration,  sequence of events and compliance with required design specifications and standards. ",5,30]
[null,null,"Method statement not containing all of the  activities on the works information.\n",2]
[null,null,"Method statement submitted is not applicable to Works Information. No Method statement provided.\n",0]
[3,"Provide a list of key resources, including CV’s and qualifications\n• Project Manager ,Engineer with ECSA, Site Manager/ Supervisor, Boiler Maker, Mechanical Fitter, Rigger ,Control & instrumentation artisan, Welder, Electrical Artisan and Safety Officer.","All key personnel CV’s and qualifications are provided. Key technical personnel have at least a minimum of 2 years experience in similar works\n",5,15]
[null,null,"All key personnel CV’s and qualifications are provided. Key Technical personnel have at least 1 year experience in similar works.\n",2]
[null,null,"No submission or submitted with deviations",0]
[4,"Project Schedule for the works.\n\nTenderer to provide high level project schedule that indicates critical project milestones and durations.","High level project schedule submitted that indicates critical project milestones and durations.\n",5,15]
[null,null,"Standard project schedule submitted that indicates project activities and durations.\n",2]
[null,null,"Project schedule not submitted or schedule is not relevant to the scope.",0]
[5,"QCP showing the Tenderer’s Historic/standard QCP with Hold, Witness, Surveillance points for Similar work conducted.\n\nHas the tenderer provided a QCP as per Employer's Works Information QCP?","QCP showing the Tenderer’s Historic/standard QCP's utilised with Hold, Witness, Surveillance points for Similar work conducted.",5,5]
[null,"Has the tenderer provided a QCP as per Works Information? Individual QCPs need to be submitted for all of the following activities:","QCP not submitted or not relevant to required scope.\n",0]